fUST/lending_fUST_20250914
["ID","MTS","AMOUNT","RATE_DAILY","PERIOD"]
[385450487,1757857849601,-480.0,0.00022739,3]
[385450488,1757857849611,-480.0,0.00022739,3]
[385450489,1757857849620,-480.0,0.00022739,3]
[385450490,1757857849629,-990.85,0.00022739,3]
[385450491,1757857849639,-829.96,0.00022739,3]
[385450492,1757857849648,-607.82714283,0.00022739,3]
[385450493,1757857849657,-480.0,0.00022739,3]
[385450494,1757857849666,-480.0,0.00022739,3]
[385450495,1757857849675,-617.73,0.00022739,3]
[385450496,1757857849684,-480.0,0.00022739,3]
[385450497,1757857849694,-480.0,0.00022739,3]
[385450498,1757857849703,-1212.15,0.00022739,3]
[385450499,1757857849712,-768.06,0.00022739,3]
[385450500,1757857849722,-480.0,0.00022739,3]
[385450501,1757857849731,-368.59390131,0.00022739,3]
[385450502,1757857849740,-539.58267892,0.00022739,3]
[385450503,1757857849749,-517.57,0.00022739,3]
[385450504,1757857849759,-485.53099758,0.00022739,3]
[385450505,1757857849768,-480.0,0.00022739,3]
[385450506,1757857849777,-967.47,0.00022739,3]
[385450507,1757857849787,-480.0,0.00022739,3]
[385450508,1757857849796,-681.51,0.00022739,3]
[385450509,1757857849806,-1259.75,0.00022739,3]
[385450510,1757857849931,-480.0,0.00022739,3]
[385450511,1757857849941,-306.78111069,0.00022739,3]
[385450512,1757857849951,-831.05,0.00022739,3]
[385450513,1757857849960,-480.0,0.00022739,3]
[385450514,1757857849969,-480.0,0.00022739,3]
[385450515,1757857849979,-480.0,0.00022739,3]
[385450516,1757857849988,-151.0,0.00022739,7]
[385450517,1757857849997,-470.45946589,0.00022739,3]
[385450518,1757857850006,-151.0,0.00022739,7]
[385450519,1757857850015,-376.80897342,0.00022739,3]
[385450520,1757857850024,-480.0,0.00022739,3]
[385450521,1757857850033,-480.0,0.00022739,3]
[385450522,1757857850043,-489.5,0.00022739,3]
[385450523,1757857850053,-2189.21,0.00022739,3]
[385450524,1757857850062,-500.0,0.00022739,3]
[385450525,1757857850071,-480.0,0.00022739,3]
[385450526,1757857850081,-1074.02,0.00022739,3]
[385450527,1757857850090,-480.0,0.00022739,3]
[385450528,1757857850099,-480.0,0.00022739,3]
[385450529,1757857850108,-480.0,0.00022739,3]
[385450530,1757857850118,-1090.9,0.00022739,3]
[385450531,1757857850127,-866.76,0.00022739,3]
[385450532,1757857850136,-237.87943243,0.00022739,3]
[385450533,1757857850145,-830.23,0.00022739,3]
[385450534,1757857850155,-480.0,0.00022739,3]
[385450535,1757857850164,-480.0,0.00022739,3]
[385450536,1757857850173,-480.0,0.00022739,3]
[385450537,1757857850182,-480.0,0.00022739,3]
[385450538,1757857850191,-480.0,0.00022739,3]
[385450539,1757857850200,-480.0,0.00022739,3]
[385450540,1757857850209,-480.0,0.00022739,3]
[385450541,1757857850218,-480.0,0.00022739,3]
[385450542,1757857850227,-480.0,0.00022739,3]
[385450543,1757857850236,-480.0,0.00022739,3]
[385450544,1757857850246,-493.0,0.00022739,3]
[385450545,1757857850255,-480.0,0.00022739,3]
[385450546,1757857850264,-480.0,0.00022739,3]
[385450547,1757857850274,-998.47,0.00022739,3]
[385450548,1757857850283,-480.0,0.00022739,3]
[385450549,1757857850292,-480.0,0.00022739,3]
[385450550,1757857850301,-480.0,0.00022739,3]
[385450551,1757857850311,-480.0,0.00022739,3]
[385450552,1757857850320,-584.27,0.00022739,3]
[385450553,1757857850329,-967.84,0.00022739,3]
[385450554,1757857850343,-480.0,0.00022739,3]
[385450555,1757857850352,-480.0,0.00022739,3]
[385450556,1757857850361,-570.36,0.00022739,3]
[385450557,1757857850370,-480.0,0.00022739,3]
[385450558,1757857850380,-1377.17,0.00022739,3]
[385450559,1757857850389,-503.8,0.00022739,3]
[385450560,1757857850398,-480.0,0.00022739,3]
[385450561,1757857850407,-1295.13,0.00022739,3]
[385450562,1757857850417,-737.2,0.00022739,3]
[385450563,1757857850427,-545.19,0.00022739,3]
[385450564,1757857850435,-480.0,0.00022739,3]
[385450565,1757857850445,-1293.77,0.00022739,3]
[385450566,1757857850454,-1285.73,0.00022739,3]
[385450567,1757857850463,-480.0,0.00022739,3]
[385450568,1757857850472,-495.83,0.00022739,3]
[385450569,1757857850482,-480.0,0.00022739,3]
[385450570,1757857850491,-480.0,0.00022739,3]
[385450571,1757857850500,-494.66,0.00022739,3]
[385450572,1757857850510,-480.0,0.00022739,3]
[385450573,1757857850519,-480.0,0.00022739,3]
[385450574,1757857850529,-893.42,0.00022739,3]
[385450575,1757857850539,-480.0,0.00022739,3]
[385450576,1757857850548,-480.0,0.00022739,3]
[385450577,1757857850558,-877.34,0.00022739,3]
[385450578,1757857850568,-1023.87,0.00022739,3]
[385450579,1757857850577,-803.93,0.00022739,3]
[385450580,1757857850587,-971.03,0.00022739,3]
[385450581,1757857850597,-755.24,0.00022739,3]
[385450582,1757857850606,-666.04,0.00022739,3]
[385450583,1757857850618,-480.0,0.00022739,3]
[385450584,1757857850628,-702.38,0.00022739,3]
[385450585,1757857850638,-999.43,0.00022739,3]
[385450586,1757857850648,-2920.87,0.00022739,3]
[385450587,1757857850658,-480.0,0.00022739,3]
[385450588,1757857850667,-989.18,0.00022739,3]
[385450589,1757857850678,-1372.61,0.00022739,3]
[385450590,1757857850687,-480.0,0.00022739,3]
[385450591,1757857850697,-1338.94,0.00022739,3]
[385450592,1757857850706,-950.51,0.00022739,3]
[385450593,1757857850716,-1214.5,0.00022739,3]
[385450594,1757857850726,-5730.62,0.00022739,3]
[385450595,1757857850735,-1106.26,0.00022739,3]
[385450596,1757857850745,-480.0,0.00022739,3]
[385450597,1757857850755,-2920.8,0.00022739,3]
[385450598,1757857850765,-480.0,0.00022739,3]
[385450599,1757857850775,-480.0,0.00022739,3]
[385450600,1757857850784,-504.19,0.00022739,3]
[385450601,1757857850794,-697.54,0.00022739,3]
[385450602,1757857850803,-1290.34867611,0.00022739,3]
[385450603,1757857850822,-379.93132389,0.00022739,3]
[385450604,1757857850832,-3517.84,0.00022739,3]
[385450605,1757857850842,-683.94,0.00022739,3]
[385450606,1757857850852,-332.72,0.00022739,2]
[385450607,1757857850861,-648.34,0.00022739,3]
[385450608,1757857850871,-701.61,0.00022739,3]
[385450609,1757857850880,-1384.27,0.00022739,3]
[385450610,1757857850890,-480.0,0.00022739,3]
[385450611,1757857850901,-657.47,0.00022739,3]
[385450612,1757857850910,-1571.38,0.00022739,3]
[385450613,1757857850919,-992.3,0.00022739,3]
[385450614,1757857850929,-570.84,0.00022739,3]
[385450615,1757857850938,-26420.12,0.00022739,3]
[385450616,1757857850948,-890.07,0.00022739,3]
[385450617,1757857850958,-503.1,0.00022739,3]
[385450618,1757857850967,-1594.03,0.00022739,3]
[385450619,1757857850976,-549.34,0.00022739,3]
[385450620,1757857850986,-2131.31,0.00022739,3]
[385450621,1757857850995,-803.63,0.00022739,3]
[385450622,1757857851005,-7663.86,0.00022739,3]
[385450623,1757857851015,-480.0,0.00022739,3]
[385450624,1757857851024,-480.0,0.00022739,3]
[385450625,1757857851033,-1133.27,0.00022739,3]
[385450626,1757857851042,-480.0,0.00022739,3]
[385450627,1757857851052,-151.0,0.00022739,7]
[385450628,1757857851061,-3356.71,0.00022739,3]
[385450629,1757857851070,-569.26,0.00022739,3]
[385450630,1757857851079,-1738.44,0.00022739,3]
[385450631,1757857851088,-1858.41,0.00022739,3]
[385450632,1757857851097,-1280.08,0.00022739,3]
[385450633,1757857851106,-2984.12,0.00022739,3]
[385450634,1757857851116,-3260.95,0.00022739,3]
[385450635,1757857851126,-1187.58,0.00022739,3]
[385450636,1757857851136,-480.0,0.00022739,3]
[385450637,1757857851145,-480.0,0.00022739,3]
[385450638,1757857851155,-883.24,0.00022739,3]
[385450639,1757857851164,-892.69,0.00022739,3]
[385450640,1757857851177,-1710.8,0.00022739,3]
[385450641,1757857851191,-489.78955133,0.00022739,3]
[385450642,1757857851204,-885.24,0.00022739,3]
[385450643,1757857851218,-1765.06,0.00022739,3]
[385450644,1757857851228,-6401.54,0.00022739,3]
[385450645,1757857851242,-2520.67,0.00022739,3]
[385450646,1757857851255,-4184.04,0.00022739,3]
[385450647,1757857851268,-480.0,0.00022739,3]
[385450648,1757857851281,-480.0,0.00022739,3]
[385450649,1757857851294,-819.51,0.00022739,3]
[385450650,1757857851307,-3056.45,0.00022739,3]
[385450651,1757857851322,-480.0,0.00022739,3]
[385450652,1757857851335,-4399.81,0.00022739,3]
[385450653,1757857851348,-480.0,0.00022739,3]
[385450654,1757857851360,-500.0,0.00022739,3]
[385450655,1757857851372,-989.51,0.00022739,3]
[385450656,1757857851386,-729.58,0.00022739,3]
[385450657,1757857851399,-480.0,0.00022739,3]
[385450658,1757857851411,-1706.72,0.00022739,3]
[385450659,1757857851422,-623.56,0.00022739,3]
[385450660,1757857851434,-1403.6,0.00022739,3]
[385450661,1757857851446,-765.22,0.00022739,3]
[385450662,1757857851459,-534.35,0.00022739,3]
[385450663,1757857851473,-151.0,0.00022739,7]
[385450664,1757857851486,-480.0,0.00022739,3]
[385450665,1757857851501,-3394.69,0.00022739,3]
[385450666,1757857851514,-480.0,0.00022739,3]
[385450667,1757857851528,-15224.06,0.00022739,3]
[385450668,1757857851539,-2866.27,0.00022739,3]
[385450669,1757857851550,-2103.55,0.00022739,3]
[385450670,1757857851562,-506.95209841,0.00022739,3]
[385450671,1757857851575,-151.0,0.00022739,7]
[385450672,1757857851590,-1380.04,0.00022739,3]
[385450673,1757857851602,-480.0,0.00022739,2]
[385450674,1757857851614,-480.0,0.00022739,3]
[385450675,1757857851626,-1075.89,0.00022739,3]
[385450676,1757857851638,-4152.55,0.00022739,3]
[385450677,1757857851650,-1288.26,0.00022739,3]
[385450678,1757857851662,-500.0,0.00022773,2]
[385450679,1757857851673,-1115.0,0.00022831,2]
[385450680,1757857851684,-420.0,0.00022831,2]
[385450681,1757857851696,-420.0,0.00022831,2]
[385450682,1757857851710,-420.0,0.00022831,2]
[385450683,1757857851721,-420.0,0.00022831,2]
[385450684,1757857851732,-600.0,0.00022854,2]
[385450685,1757857851744,-500.92331934,0.00022871,8]
[385450686,1757857851756,-500.0,0.00022892,8]
[385450687,1757857851767,-151.0,0.000229,9]
[385450688,1757857851779,-108.30315185,0.00022939,2]
[385450689,1757857851826,-1571.69684815,0.00022939,2]
[385450690,1757857851838,-2000.0,0.00023,2]
[385450691,1757857851850,-233.1999649,0.00023,3]
[385450692,1757857851862,-160.0,0.00023,3]
[385450693,1757857851874,-847.27885267,0.00023,3]
[385450694,1757857851886,-217.77739939,0.00023,3]
[385450695,1757857851898,-160.0,0.00023,3]
[385450696,1757857851910,-531.23217266,0.00023,3]
[385450697,1757857851921,-703.0,0.00023012,2]
[385450698,1757857851932,-480.0,0.00023013,2]
[385450699,1757857851944,-228.12395856,0.00023013,3]
[385450700,1757857851956,-480.0,0.00023013,3]
[385450701,1757857851967,-515.89,0.00023013,3]
[385450702,1757857851978,-756.76,0.00023013,3]
[385450703,1757857851989,-231.1073055,0.00023013,3]
[385450704,1757857852001,-480.0,0.00023013,3]
[385450705,1757857852012,-480.0,0.00023013,3]
[385450706,1757857852024,-990.85,0.00023013,3]
[385450707,1757857852035,-153.11392748,0.00023013,3]
[385450708,1757857852053,-676.84607252,0.00023013,3]
[385450709,1757857852064,-480.0,0.00023013,3]
[385450710,1757857852076,-480.0,0.00023013,3]
[385450711,1757857852088,-617.73,0.00023013,3]
[385450712,1757857852099,-480.0,0.00023013,3]
[385450713,1757857852111,-480.0,0.00023013,3]
[385450714,1757857852122,-1212.15,0.00023013,3]
[385450715,1757857852134,-768.06,0.00023013,3]
[385450716,1757857852145,-480.0,0.00023013,3]
[385450717,1757857852157,-517.57,0.00023013,3]
[385450718,1757857852168,-488.02918944,0.00023013,3]
[385450719,1757857852180,-967.47,0.00023013,3]
[385450720,1757857852192,-171.37992175,0.00023013,3]
[385450721,1757857852203,-681.51,0.00023013,3]
[385450722,1757857852212,-1259.75,0.00023013,3]
[385450723,1757857852221,-320.04507709,0.00023013,3]
[385450724,1757857852231,-831.05,0.00023013,3]
[385450725,1757857852240,-480.0,0.00023013,3]
[385450726,1757857852249,-480.0,0.00023013,3]
[385450727,1757857852258,-134.5328866,0.00023013,3]
[385450728,1757857852439,-156.424879,0.00022361,2]
[385450729,1757857852448,-345.4671134,0.00023013,3]
[385450730,1757857852458,-151.0,0.00023013,7]
[385450731,1757857852468,-151.0,0.00023013,7]
[385450732,1757857852477,-480.0,0.00023013,3]
[385450733,1757857852487,-192.7096624,0.00023013,3]
[385450734,1757857852496,-489.5,0.00023013,3]
[385450735,1757857852505,-2189.21,0.00023013,3]
[385450736,1757857852514,-500.0,0.00023013,3]
[385450737,1757857852524,-480.0,0.00023013,3]
[385450738,1757857852533,-204.6883452,0.00023013,3]
[385450739,1757857877584,-1766.44866772,0.0002089,2]
[385450740,1757857877739,-10000.01,0.0002089,2]
[385450741,1757857878106,-10000.01,0.0002089,2]
[385450742,1757857878249,-10000.01,0.0002089,2]
[385450743,1757857878399,-10000.01,0.0002089,2]
[385450744,1757857878536,-10000.01,0.0002089,2]
[385450745,1757857878671,-10000.01,0.0002089,2]
[385450746,1757857878812,-10000.01,0.0002089,2]
[385450747,1757857879137,-10000.01,0.0002089,2]
[385450748,1757857882100,1371.19725426,0.000199,2]
[385450749,1757857887444,-10000.01,0.0002089,2]
[385450750,1757857887578,-10000.01,0.0002089,2]
[385450751,1757857887719,-10000.01,0.0002089,2]
[385450752,1757857887872,-10000.01,0.0002089,2]
[385450753,1757857888010,-10000.01,0.0002089,2]
[385450754,1757857888172,-10000.01,0.0002089,2]
[385450755,1757857888304,-10000.01,0.0002089,2]
[385450756,1757857888498,-10000.01,0.0002089,2]
[385450757,1757857888686,-10000.01,0.0002089,2]
[385450758,1757857888850,-10000.01,0.0002089,2]
[385450759,1757857897572,-1474.95278124,0.00020681,2]
[385450760,1757857897626,-7050.10443752,0.0002089,2]
[385450761,1757857897639,-10000.01,0.0002089,2]
[385450762,1757857897699,-10000.01,0.0002089,2]
[385450763,1757857898068,-10000.01,0.0002089,2]
[385450764,1757857898087,-10000.01,0.0002089,2]
[385450765,1757857898130,-10000.01,0.0002089,2]
[385450766,1757857898261,-10000.01,0.0002089,2]
[385450767,1757857898418,-10000.01,0.0002089,2]
[385450768,1757857898542,-10000.01,0.0002089,2]
[385450769,1757857898748,-10000.01,0.0002089,2]
[385450770,1757857917482,-3424.23487445,0.00020681,2]
[385450771,1757857917527,-3151.5402511,0.0002089,2]
[385450772,1757857917896,-10000.01,0.0002089,2]
[385450773,1757857917945,-10000.01,0.0002089,2]
[385450774,1757857918075,-10000.01,0.0002089,2]
[385450775,1757857918273,-10000.01,0.0002089,2]
[385450776,1757857918408,-10000.01,0.0002089,2]
[385450777,1757857918590,-10000.01,0.0002089,2]
[385450778,1757857918759,-10000.01,0.0002089,2]
[385450779,1757857918880,-10000.01,0.0002089,2]
[385450780,1757857937856,203.98,0.0002012,2]
[385450781,1757858056231,193.79107853,0.00030331,50]
[385450782,1757858063699,1427.33768182,0.000199,2]
[385450783,1757858122122,5000.0,0.0002012,2]
[385450784,1757858131186,3368.69231818,0.0002012,2]
[385450785,1757858131209,1631.30768182,0.0002012,2]
[385450786,1757858146880,5000.0,0.0002012,2]
[385450787,1757858155562,3368.70231818,0.0002012,2]
[385450788,1757858155587,715.50532355,0.0002012,2]
[385450789,1757858171280,1280.63806348,0.0002012,2]
[385450791,1757858262551,1379.75975917,0.000199,2]
[385450795,1757858352963,1221.32252783,0.0002012,2]
[385450796,1757858388605,5402.78432597,0.00020057,2]
[385450797,1757858388632,2338.03757223,0.00020057,2]
[385450798,1757858450344,1333.76776713,0.000199,2]
[385450799,1757858623829,-177.9303577,0.00020185,2]
[385450800,1757858623858,-263.14522651,0.00020263,2]
[385450801,1757858623886,-160.863942,0.00020301,2]
[385450802,1757858623915,-1200.0,0.00020679,2]
[385450803,1757858623942,-183.0,0.00020888,2]
[385450804,1757858623970,-300.0,0.00020888,2]
[385450805,1757858623998,-300.0,0.00020889,2]
[385450806,1757858624027,-1200.0,0.00020889,2]
[385450807,1757858624055,-300.0,0.00020889,2]
[385450808,1757858633776,-1968.45335634,0.0002089,2]
[385450809,1757858641679,1289.30884153,0.000199,2]
[385450810,1757858643819,-3936.90671268,0.0002089,2]
[385450811,1757858653793,-2126.19657464,0.0002089,2]
[385450812,1757858653836,-300.0,0.00020916,2]
[385450813,1757858743952,-1957.045901,0.00020351,2]
[385450814,1757858743981,-271.768315,0.00020426,2]
[385450815,1757858753956,-4171.3781614,0.00020885,2]
[385450816,1757858763975,-1657.2536772,0.00020885,2]
[385450817,1757858764005,-300.0,0.00020916,2]
[385450818,1757858764036,-1200.0,0.00020916,2]
[385450819,1757858764066,-300.0,0.00020916,2]
[385450820,1757858764115,-300.0,0.00020916,2]
[385450821,1757858814039,-1119.5232126,0.0002088,2]
[385450822,1757858814069,-1564.5616566,0.00020917,2]
[385450823,1757858814168,-4631.8402616,0.00020917,2]
[385450824,1757858814198,-180.3294768,0.00020958,2]
[385450825,1757858824042,-375.6705232,0.00020958,2]
[385450826,1757858824075,-168.0,0.00020975,2]
[385450827,1757858824107,-168.0,0.00021033,2]
[385450828,1757858824138,-300.0,0.00021073,2]
[385450829,1757858824383,-4190.5795924,0.00021074,2]
[385450830,1757858824416,-4809.7041976,0.00021074,2]
[385450831,1757858824464,-380.6016048,0.00021074,2]
[385450832,1757858824496,-168.0,0.00021128,2]
[385450833,1757858824527,-300.0,0.00021307,20]
[385450834,1757858824561,-300.0,0.00021307,20]
[385450835,1757858824592,-300.0,0.00021307,20]
[385450836,1757858824623,-300.0,0.00021307,20]
[385450837,1757858824654,-300.0,0.00021307,20]
[385450838,1757858824685,-300.0,0.00021307,20]
[385450839,1757858824717,-300.0,0.00021307,20]
[385450840,1757858824748,-300.0,0.00021307,20]
[385450841,1757858824780,-300.0,0.00021307,20]
[385450842,1757858824812,-300.0,0.00021307,20]
[385450843,1757858824849,-300.0,0.00021307,20]
[385450844,1757858824880,-300.0,0.00021307,20]
[385450845,1757858824912,-300.0,0.00021307,20]
[385450846,1757858824944,-300.0,0.00021307,20]
[385450847,1757858824976,-202.8067904,0.00021307,20]
[385450848,1757858825107,-97.1932096,0.00021307,20]
[385450849,1757858825140,-600.0,0.00021307,20]
[385450850,1757858825171,-168.0,0.00021399,2]
[385450851,1757858825203,-168.0,0.00021411,2]
[385450852,1757858825235,-168.0,0.00021439,2]
[385450853,1757858825266,-168.0,0.00021469,2]
[385450854,1757858825296,-168.0,0.00021496,2]
[385450855,1757858825327,-168.0,0.00021507,2]
[385450856,1757858825358,-168.0,0.00021566,2]
[385450857,1757858825389,-556.0,0.00021591,2]
[385450858,1757858825420,-168.0,0.00021631,2]
[385450859,1757858825451,-1805.6235808,0.000218,2]
[385450860,1757858825590,1424.65455518,0.000199,2]
[385450861,1757858826251,-1424.65455509,0.00021149,2]
[385450862,1757858826261,-273.72186411,0.000218,2]
[385450863,1757858834083,-920.65455509,0.000218,2]
[385450864,1757858834114,-1200.0,0.00021805,2]
[385450865,1757858834144,-1788.99,0.00021806,3]
[385450866,1757858834175,-894.49,0.00021806,3]
[385450867,1757858834256,-391.74088982,0.00021806,3]
[385450868,1757858834293,-55.50911018,0.00021806,3]
[385450869,1757858834323,-223.62,0.00021806,3]
[385450870,1757858834352,-670.89,0.00021806,3]
[385450871,1757858834381,-484.27,0.00021806,10]
[385450872,1757858834410,-3000.0,0.0002181,2]
[385450873,1757858834440,-542.6254294,0.00021815,2]
[385450874,1757858834533,-500.0,0.00021815,2]
[385450875,1757858834562,-379.92980195,0.00021815,2]
[385450876,1757858834593,-500.0,0.00021815,2]
[385450877,1757858834623,-500.0,0.00021815,2]
[385450878,1757858834654,-500.0,0.00021815,2]
[385450879,1757858834684,-500.0,0.00021815,2]
[385450880,1757858834714,-500.0,0.00021815,2]
[385450881,1757858834744,-500.0,0.00021815,2]
[385450882,1757858834774,-500.0,0.00021815,2]
[385450883,1757858834804,-500.0,0.00021815,2]
[385450884,1757858834918,-500.0,0.00021815,2]
[385450885,1757858834951,-288.46283886,0.00021815,2]
[385450886,1757858834983,-500.0,0.00021815,2]
[385450887,1757858835015,-500.0,0.00021815,2]
[385450888,1757858835046,-500.0,0.00021815,2]
[385450889,1757858835078,-500.0,0.00021815,2]
[385450890,1757858835108,-500.0,0.00021815,2]
[385450891,1757858835137,-378.58896965,0.00021815,2]
[385450892,1757858835168,-500.0,0.00021815,2]
[385450893,1757858835198,-185.74433742,0.00021815,2]
[385450894,1757858835226,-208.65314018,0.00021815,2]
[385450895,1757858835257,-219.10735509,0.00021815,2]
[385450896,1757858835375,-500.0,0.00021815,2]
[385450897,1757858835405,-500.0,0.00021815,2]
[385450898,1757858835435,-500.0,0.00021815,2]
[385450899,1757858835466,-600.0,0.00021815,2]
[385450900,1757858835496,-500.0,0.00021815,2]
[385450901,1757858835528,-500.0,0.00021815,2]
[385450902,1757858835558,-500.0,0.00021815,2]
[385450903,1757858835746,-500.0,0.00021815,2]
[385450904,1757858835780,-500.0,0.00021815,2]
[385450905,1757858852139,800.01,0.00021716,2]
[385450906,1757858852164,1205.17779718,0.00021716,2]
[385450907,1757858862096,500.0,0.00021815,2]
[385450908,1757858862351,500.0,0.00021815,2]
[385450909,1757858862399,500.0,0.00021815,2]
[385450910,1757858862548,500.0,0.00021815,2]
[385450911,1757858862661,355.10030439,0.00021815,2]
[385450912,1757858874264,1031.5089175,0.00020992,2]
[385450913,1757858934375,-4608.21298093,0.00021716,2]
[385450914,1757859008089,1329.67758477,0.000199,2]
[385450915,1757859019411,-1329.67758475,0.00021149,2]
[385450916,1757859019440,-200.88149034,0.00021616,2]
[385450917,1757859019470,-288.0,0.00021715,2]
[385450918,1757859019499,-300.0,0.00021715,2]
[385450919,1757859019529,-1200.0,0.00021715,2]
[385450920,1757859019675,-2033.21426507,0.00021716,2]
[385450921,1757859019707,-4888.65864431,0.00021716,2]
[385450922,1757859019749,-222.69271138,0.00021716,2]
[385450923,1757859019786,-551.88409181,0.00021716,2]
[385450924,1757859019816,-774.57680319,0.00021741,2]
[385450925,1757859019845,-774.57680319,0.00021767,2]
[385450926,1757859019877,-774.57680319,0.00021792,2]
[385450927,1757859019908,-250.0,0.00021804,2]
[385450928,1757859019937,-250.0,0.00021804,2]
[385450929,1757859019969,-250.0,0.00021804,2]
[385450930,1757859020000,-250.0,0.00021804,2]
[385450931,1757859020032,-500.0,0.00021815,2]
[385450932,1757859020063,-294.34013597,0.00021815,2]
[385450933,1757859027914,195.17009893,0.00021815,2]
[385451015,1757859037882,-370000.0,0.00021816,2]
[385451016,1757859037893,-500.0,0.00021816,2]
[385451017,1757859037902,-774.57680319,0.00021817,2]
[385451018,1757859037912,-217.77739939,0.00021817,2]
[385451019,1757859037921,-233.1999649,0.00021817,2]
[385451020,1757859037931,-847.27885267,0.00021817,2]
[385451022,1757859037941,-160.0,0.00021817,2]
[385451023,1757859037951,-160.0,0.00021817,2]
[385451024,1757859037960,-417.15472785,0.00021817,2]
[385451025,1757859037970,-160.0,0.00021817,2]
[385451026,1757859037979,-160.0,0.00021817,2]
[385451028,1757859037988,-160.0,0.00021817,2]
[385451029,1757859037998,-160.0,0.00021817,2]
[385451030,1757859038008,-39000.04,0.00021817,2]
[385451031,1757859038017,-160.0,0.00021819,2]
[385451032,1757859038026,-531.23217266,0.00021819,2]
[385451033,1757859038035,-160.0,0.00021819,2]
[385451034,1757859038045,-3000.0,0.0002182,2]
[385451035,1757859038055,-3968.057217,0.0002183,2]
[385451036,1757859038063,-500.0,0.00021873,2]
[385451037,1757859038073,-500.0,0.00021873,2]
[385451038,1757859038082,-501.52711983,0.00021873,2]
[385451039,1757859038092,-501.4656913,0.00021873,2]
[385451040,1757859038101,-500.0,0.00021873,2]
[385451041,1757859038112,-503.38114305,0.00021873,2]
[385451042,1757859038121,-500.0,0.00021873,2]
[385451043,1757859038130,-500.0,0.00021873,2]
[385451044,1757859038139,-500.0,0.00021873,2]
[385451045,1757859038148,-500.0,0.00021873,2]
[385451046,1757859038157,-502.72568923,0.00021873,2]
[385451047,1757859038167,-500.64990657,0.00021873,2]
[385451048,1757859038176,-500.0,0.00021873,2]
[385451049,1757859038186,-500.0,0.00021873,2]
[385451050,1757859038195,-502.04397861,0.00021873,2]
[385451051,1757859038204,-500.0,0.00021873,2]
[385451052,1757859038213,-500.0,0.00021873,2]
[385451053,1757859038222,-500.0,0.00021917,2]
[385451054,1757859038231,-480.0,0.00021917,2]
[385451055,1757859038240,-480.0,0.00021917,2]
[385451056,1757859038249,-480.0,0.00021917,2]
[385451057,1757859038259,-758.96,0.00021917,2]
[385451058,1757859038268,-480.0,0.00021917,2]
[385451059,1757859038277,-480.0,0.00021917,2]
[385451060,1757859038286,-480.0,0.00021917,2]
[385451061,1757859038295,-480.0,0.00021917,2]
[385451062,1757859038305,-480.0,0.00021917,2]
[385451063,1757859038314,-480.0,0.00021917,2]
[385451064,1757859038323,-480.0,0.00021917,2]
[385451065,1757859038332,-370.04950511,0.00021917,2]
[385451066,1757859038341,-496.18587711,0.00021917,2]
[385451067,1757859038350,-480.0,0.00021917,2]
[385451068,1757859038361,-480.0,0.00021917,2]
[385451069,1757859038370,-480.0,0.00021917,2]
[385451070,1757859038379,-852.3,0.00021917,2]
[385451071,1757859038388,-500.0,0.00021917,2]
[385451072,1757859038397,-480.0,0.00021917,2]
[385451073,1757859038407,-491.91650673,0.00021917,2]